bitfinex-derivatives/quotes_BTCF0:USTF0_20250929
["timestamp","ask_amount","ask_price","bid_price","bid_amount"]
[1759151630387,0.12560484,112140.0,112130.0,1.3163121]
[1759151630583,0.12560484,112140.0,112130.0,1.6445594]
[1759151630792,0.12560484,112140.0,112130.0,0.8141594]
[1759151631091,0.12560484,112140.0,112130.0,1.6445194]
[1759151631591,0.12558114,112140.0,112130.0,1.6445194]
[1759151632296,0.12558114,112140.0,112130.0,1.6454094]
[1759151632796,0.1165484,112140.0,112130.0,1.6454094]
[1759151632981,0.09568953,112140.0,112130.0,1.6454094]
[1759151634095,0.07327953,112140.0,112130.0,1.6454094]
[1759151636095,0.07287953,112140.0,112130.0,1.6454094]
[1759151636396,0.0004,112140.0,112130.0,1.6454094]
[1759151638090,0.07052007,112140.0,112130.0,1.6454094]
[1759151638489,0.07052007,112140.0,112130.0,0.8150494]
[1759151638690,0.09352007,112140.0,112130.0,1.6451694]
[1759151638895,0.09352007,112140.0,112130.0,0.4868021]
[1759151639095,0.09352007,112140.0,112130.0,1.3169221]
[1759151639293,0.09352007,112140.0,112130.0,0.8150494]
[1759151639595,0.09352007,112140.0,112130.0,1.6451694]
[1759151641092,0.09352007,112140.0,112130.0,0.8150494]
[1759151641303,0.09352007,112140.0,112130.0,1.6451294]
[1759151641904,0.09352007,112140.0,112130.0,1.3168421]
[1759151642099,0.09352007,112140.0,112130.0,1.6450894]
[1759151642496,0.07052007,112140.0,112130.0,1.6450894]
[1759151642893,0.07052007,112140.0,112130.0,1.3168421]
[1759151643198,0.07052007,112140.0,112130.0,1.6450894]
[1759151643493,0.09352007,112140.0,112130.0,0.8150494]
[1759151643691,0.09352007,112140.0,112130.0,1.6450494]
[1759151644997,0.09352007,112140.0,112130.0,1.6450094]
[1759151645302,0.09352007,112140.0,112130.0,0.8150494]
[1759151645494,0.09352007,112140.0,112130.0,1.6450094]
[1759151646897,0.09352007,112140.0,112130.0,1.3167621]
[1759151647098,0.09352007,112140.0,112130.0,1.6450094]
[1759151649902,0.09352007,112140.0,112130.0,1.3167621]
[1759151650097,0.09352007,112140.0,112130.0,1.6450094]
[1759151650901,0.09352007,112140.0,112130.0,1.3167621]
[1759151651199,0.07052007,112140.0,112130.0,1.6450094]
[1759151652201,0.09136857,112140.0,112130.0,1.6450094]
[1759151653801,0.11436857,112140.0,112130.0,1.6449294]
[1759151655199,0.11436857,112140.0,112130.0,1.69292425]
[1759151655402,0.11436857,112140.0,112130.0,0.86304425]
[1759151655601,0.11436857,112140.0,112130.0,1.36467695]
[1759151655803,0.11436857,112140.0,112130.0,1.69292425]
[1759151656304,0.11436857,112140.0,112130.0,0.86304425]
[1759151656501,0.11436857,112140.0,112130.0,1.69292425]
[1759151656907,0.11436857,112140.0,112130.0,0.86304425]
[1759151657103,0.11436857,112140.0,112130.0,1.69292425]
[1759151657806,0.09136857,112140.0,112130.0,1.69292425]
[1759151658500,0.0008,112150.0,112140.0,0.03523]
[1759151658707,0.0008,112150.0,112140.0,1.18965345]
[1759151659101,0.02216,112160.0,112150.0,0.1243535]
[1759151659304,0.02296,112160.0,112150.0,1.6432408]
[1759151660507,0.09383756,112160.0,112150.0,1.6432408]
[1759151661304,0.09383756,112160.0,112150.0,1.6441308]
[1759151663207,0.07167756,112160.0,112150.0,1.6441308]
[1759151663606,0.07087756,112160.0,112150.0,1.6441308]
[1759151663907,0.0004,112160.0,112150.0,1.6441308]
[1759151664712,0.0004,112160.0,112150.0,2.0441308]
[1759151664916,0.07249441,112170.0,112160.0,0.1243481]
[1759151665105,0.50096286,112190.0,112180.0,0.1243322]
[1759151665306,0.38076128,112190.0,112180.0,0.4851322]
[1759151665607,0.37996128,112190.0,112180.0,0.4851322]
[1759151665805,0.46945558,112190.0,112180.0,0.4851322]
[1759151666308,0.45307276,112190.0,112180.0,0.4851322]
[1759151666514,0.21391976,112190.0,112180.0,0.4851322]
[1759151667212,0.12482546,112190.0,112180.0,0.8133795]
[1759151668814,0.21391976,112190.0,112180.0,1.6430195]
[1759151669214,0.12482546,112190.0,112180.0,1.6430195]
[1759151669607,0.12442546,112190.0,112180.0,1.6429795]
[1759151669811,0.21391976,112190.0,112180.0,0.8133795]
[1759151670312,0.12482546,112190.0,112180.0,1.6429795]
[1759151670517,0.14562437,112190.0,112180.0,1.6429795]
[1759151670912,0.14562437,112190.0,112180.0,0.8133795]
[1759151671212,0.14562437,112190.0,112180.0,1.6429795]
[1759151671412,0.14562437,112190.0,112180.0,0.8133795]
[1759151671616,0.14562437,112190.0,112180.0,1.6429395]
[1759151671910,0.14562437,112190.0,112180.0,0.8133795]
[1759151672119,0.23471867,112190.0,112180.0,1.6429395]
[1759151672815,0.23471867,112190.0,112180.0,1.3146922]
[1759151673016,0.23471867,112190.0,112180.0,0.8133795]
[1759151673218,0.23471867,112190.0,112180.0,1.3146922]
[1759151673418,0.23471867,112190.0,112180.0,1.6429395]
[1759151673718,0.23471867,112190.0,112180.0,0.4860222]
[1759151673918,0.23471867,112190.0,112180.0,1.6438295]
[1759151674121,0.23471867,112190.0,112180.0,1.6437895]
[1759151674419,0.56246026,112190.0,112180.0,1.64328379]
[1759151675319,0.54166135,112190.0,112180.0,0.81376379]
[1759151675519,0.21391976,112190.0,112180.0,1.3155422]
[1759151675719,0.54166135,112190.0,112180.0,0.39692]
[1759151675912,1.28203294,112190.0,112180.0,0.00089]
[1759151676219,1.28203294,112190.0,112180.0,0.02344]
[1759151677113,1.28203294,112190.0,112180.0,0.1125422]
[1759151677314,0.62654976,112190.0,112180.0,0.1125422]
[1759151677516,1.28203294,112190.0,112180.0,0.1125422]
[1759151679420,0.88203294,112190.0,112180.0,0.02344]
[1759151679618,1.71151294,112190.0,112180.0,0.02344]
[1759151684121,0.88203294,112190.0,112180.0,0.02344]
[1759151684323,1.71143294,112190.0,112180.0,0.02344]
[1759151685221,2.47223294,112190.0,112180.0,0.00089]
[1759151686017,2.50413712,112190.0,112180.0,0.00089]
[1759151686219,0.44861179,112170.0,112160.0,0.38335]
[1759151686418,1.27797179,112170.0,112160.0,0.38335]
[1759151686620,0.44861179,112170.0,112160.0,0.38335]
[1759151686822,1.27797179,112170.0,112160.0,0.38335]
[1759151687620,0.44861179,112170.0,112160.0,0.38335]
[1759151687822,0.1112702,112170.0,112160.0,0.81288969]
[1759151688019,0.43901179,112170.0,112160.0,0.81288969]
[1759151688218,0.1116702,112170.0,112160.0,1.14063128]
[1759151688517,0.1112702,112170.0,112160.0,0.81288969]
[1759151688717,0.43941179,112170.0,112160.0,0.4851481]
[1759151688917,0.43941179,112170.0,112160.0,0.81288969]
[1759151689114,0.43941179,112170.0,112160.0,0.4851481]
[1759151690334,0.1116702,112170.0,112160.0,0.4851481]
[1759151690528,0.43941179,112170.0,112160.0,0.4851481]
[1759151690830,0.1116702,112170.0,112160.0,0.4851481]
[1759151691128,0.43941179,112170.0,112160.0,0.4851481]
[1759151691430,0.43941179,112170.0,112160.0,0.5171031]
[1759151691620,0.43941179,112170.0,112160.0,0.84484469]
[1759151691821,0.43941179,112170.0,112160.0,0.5171031]
[1759151692017,0.43941179,112170.0,112160.0,0.84484469]
[1759151694130,0.35030159,112170.0,112160.0,0.84484469]
[1759151694631,0.43901179,112170.0,112160.0,0.84484469]
[1759151694826,0.35030159,112170.0,112160.0,0.84484469]
[1759151695839,0.02256,112170.0,112160.0,0.84484469]
[1759151696019,0.35030159,112170.0,112160.0,0.84484469]
[1759151696225,0.43941179,112170.0,112160.0,0.84484469]
[1759151696433,0.35030159,112170.0,112160.0,0.84484469]
[1759151697331,0.43941179,112170.0,112160.0,0.5171031]
[1759151697534,0.02256,112170.0,112160.0,0.5171031]
[1759151697730,0.35030159,112170.0,112160.0,0.84484469]
[1759151698220,0.0004,112170.0,112160.0,0.96509795]
[1759151698531,0.43862879,112180.0,112170.0,0.1258802]
[1759151698832,0.43862879,112180.0,112170.0,0.81442179]
[1759151699130,0.34952159,112180.0,112170.0,0.81442179]
[1759151699320,0.43862379,112180.0,112170.0,0.81442179]
[1759151700033,0.76636538,112180.0,112170.0,0.81442179]
[1759151700630,0.76636538,112180.0,112170.0,0.4866802]
[1759151700834,0.76636538,112180.0,112170.0,0.81442179]
[1759151701034,0.76636538,112180.0,112170.0,0.4866802]
[1759151702742,0.1108822,112180.0,112170.0,0.4866802]
[1759151703034,0.76636538,112180.0,112170.0,0.4866802]
[1759151703334,0.76636538,112180.0,112170.0,0.81442179]
[1759151704332,0.76636538,112180.0,112170.0,0.4866802]
[1759151704533,0.76636538,112180.0,112170.0,0.81442179]
[1759151704732,0.76636538,112180.0,112170.0,0.4866802]
[1759151705136,0.76636538,112180.0,112170.0,0.39757]
[1759151705340,0.76636538,112180.0,112170.0,0.03677]
[1759151705637,0.76636538,112180.0,112170.0,0.39757]
[1759151705935,0.76636538,112180.0,112170.0,0.4866802]
[1759151706129,0.76636538,112180.0,112170.0,0.39757]
[1759151708239,0.1108822,112180.0,112170.0,0.4866802]
[1759151708541,0.76636538,112180.0,112170.0,0.4866802]
[1759151708732,0.1108822,112180.0,112170.0,0.4866802]
[1759151709043,0.76636538,112180.0,112170.0,0.4866802]
[1759151709733,0.1108822,112180.0,112170.0,0.4866802]
[1759151710040,0.76636538,112180.0,112170.0,0.4866802]
[1759151711531,0.76636538,112180.0,112170.0,0.5186352]
[1759151712439,0.76636538,112180.0,112170.0,0.429525]
[1759151712639,0.76636538,112180.0,112170.0,0.5186352]
[1759151715345,0.1108822,112180.0,112170.0,0.5186352]
[1759151715536,0.76636538,112180.0,112170.0,0.5186352]
[1759151716341,0.1108822,112180.0,112170.0,0.5186352]
[1759151716544,0.76636538,112180.0,112170.0,0.84637679]
[1759151717749,0.32774159,112180.0,112170.0,0.89437164]
[1759151718040,0.41684379,112180.0,112170.0,0.86241664]
[1759151718237,0.52136455,112190.0,112180.0,0.1239722]
[1759151718542,0.19282296,112190.0,112180.0,1.17233296]
[1759151718742,0.52096455,112190.0,112180.0,2.00145296]
[1759151718940,0.52096455,112190.0,112180.0,1.67371137]
[1759151719444,0.52056455,112190.0,112180.0,1.67371137]
[1759151719743,0.52096455,112190.0,112180.0,1.67371137]
[1759151720245,0.49875455,112190.0,112180.0,1.67371137]
[1759151721335,0.52121455,112190.0,112180.0,0.75548917]
[1759151721537,0.19347296,112190.0,112180.0,1.58456917]
[1759151721743,0.52121455,112190.0,112180.0,1.58456917]
[1759151721943,0.52121455,112190.0,112180.0,0.42774758]
[1759151722142,0.52121455,112190.0,112180.0,1.58456917]
[1759151722442,0.19347296,112190.0,112180.0,1.67367157]
[1759151722644,0.52121455,112190.0,112180.0,1.67367157]
[1759151723046,0.52121455,112190.0,112180.0,0.84459157]
[1759151723243,0.52121455,112190.0,112180.0,1.67363157]
[1759151724146,0.19347296,112190.0,112180.0,1.67363157]
[1759151724342,0.08191356,112190.0,112180.0,2.00137316]
[1759151724745,0.17060796,112190.0,112180.0,1.67363157]
[1759151725044,0.49874955,112190.0,112180.0,2.00137316]
[1759151725833,0.49874955,112190.0,112180.0,0.51684998]
[1759151725834,0.52120955,112190.0,112180.0,0.51684998]
[1759151726038,0.52120955,112190.0,112180.0,1.67359157]
[1759151726439,0.43211515,112190.0,112180.0,1.67359157]
[1759151726852,0.10437356,112190.0,112180.0,1.34584998]
[1759151727147,0.40965515,112190.0,112180.0,1.67359157]
[1759151727349,0.08191356,112190.0,112180.0,1.67359157]
[1759151727542,0.40965515,112190.0,112180.0,1.67359157]
[1759151728445,0.40965515,112190.0,112180.0,2.00133316]
[1759151728950,0.40965515,112190.0,112180.0,1.67359157]
[1759151729152,0.08191356,112190.0,112180.0,1.67359157]
[1759151729451,0.07311148,112190.0,112180.0,2.40133316]
[1759151729651,0.07271148,112190.0,112180.0,2.41725043]
[1759151729850,0.0004,112190.0,112180.0,2.41725043]
[1759151730352,0.0004,112190.0,112180.0,2.43338205]
[1759151731049,0.0004,112190.0,112180.0,2.36925558]
[1759151731247,0.0004,112190.0,112180.0,0.8847724]
[1759151731443,0.43928819,112200.0,112190.0,0.1017143]
[1759151731650,0.1115466,112200.0,112190.0,0.89255106]
[1759151731849,0.43928819,112200.0,112190.0,1.39372947]
[1759151732049,0.43928819,112200.0,112190.0,1.72147106]
[1759151732850,0.1115466,112200.0,112190.0,1.72147106]
[1759151733051,0.43928819,112200.0,112190.0,0.89255106]
[1759151733256,0.43928819,112200.0,112190.0,0.84452396]
[1759151733552,0.51055377,112200.0,112190.0,1.67340396]
[1759151734352,0.18281218,112200.0,112190.0,1.34566237]
[1759151735746,0.18281218,112200.0,112190.0,0.84448104]
[1759151736053,0.18281218,112200.0,112190.0,1.67332104]
[1759151736253,0.18281218,112200.0,112190.0,1.34562237]
[1759151737753,0.18281218,112200.0,112190.0,0.51678237]
[1759151737959,0.18281218,112200.0,112190.0,1.34558237]
[1759151738352,0.51051085,112200.0,112190.0,1.34558237]
[1759151739452,0.18281218,112200.0,112190.0,1.34558237]
[1759151739656,0.18281198,112200.0,112190.0,1.67328104]
[1759151740853,0.18281198,112200.0,112190.0,1.34558237]
[1759151741258,0.51051065,112200.0,112190.0,1.34558237]
[1759151742845,0.51051065,112200.0,112190.0,0.51678237]
[1759151743050,0.51051065,112200.0,112190.0,1.34554237]
[1759151743253,0.18281198,112200.0,112190.0,1.34554237]
[1759151744349,0.18281198,112200.0,112190.0,1.67324104]
[1759151745058,0.18281198,112200.0,112190.0,1.34554237]
[1759151745354,0.18281198,112200.0,112190.0,1.67324104]
[1759151746155,0.18281198,112200.0,112190.0,1.72126814]
[1759151746864,0.18281198,112200.0,112190.0,0.89250814]
[1759151747056,0.18281198,112200.0,112190.0,1.72118814]
[1759151747856,0.18281198,112200.0,112190.0,0.89250814]
[1759151748155,0.18281198,112200.0,112190.0,1.72118814]
[1759151749359,0.09372558,112200.0,112190.0,1.72118814]
[1759151749857,0.18281198,112200.0,112190.0,1.72118814]
[1759151750459,0.09372558,112200.0,112190.0,1.72118814]
[1759151751659,0.09372558,112200.0,112190.0,1.67316104]
[1759151752055,0.18281198,112200.0,112190.0,1.67316104]
[1759151753752,0.09372558,112200.0,112190.0,1.67316104]
[1759151754456,0.09372558,112200.0,112190.0,1.34546237]
[1759151754758,0.09372558,112200.0,112190.0,1.67316104]
[1759151755160,0.09372558,112200.0,112190.0,1.72118814]
[1759151756759,0.09372558,112200.0,112190.0,1.39348947]
[1759151756961,0.09372558,112200.0,112190.0,1.72118814]
[1759151757361,0.07126558,112200.0,112190.0,1.72118814]
[1759151757556,0.44820752,112210.0,112200.0,0.1241965]
[1759151757760,0.03142605,112210.0,112200.0,0.81269517]
[1759151757959,0.02177,112210.0,112200.0,0.84471324]
[1759151758154,0.14138511,112220.0,112200.0,0.93379974]
[1759151758360,0.50049196,112220.0,112210.0,0.39591]
[1759151759162,0.50049196,112220.0,112210.0,0.4849886]
[1759151759565,0.49969196,112220.0,112210.0,0.4849886]
[1759151759756,0.50009196,112220.0,112210.0,0.4849886]
[1759151760157,0.47966637,112220.0,112210.0,0.39591]
[1759151760550,0.47966637,112220.0,112210.0,0.4849886]
[1759151761765,0.44777775,112220.0,112210.0,0.4849886]
[1759151763166,0.12007908,112220.0,112210.0,0.4849886]
[1759151763362,0.51898076,112220.0,112210.0,0.4849886]
[1759151764166,0.19128209,112220.0,112210.0,0.4849886]
[1759151764465,0.51898076,112220.0,112210.0,0.4849886]
[1759151769368,0.19128209,112220.0,112210.0,0.4849886]
[1759151769569,0.51898076,112220.0,112210.0,0.4849886]
[1759151772468,0.52858076,112220.0,112210.0,0.39591]
[1759151772874,0.52858076,112220.0,112210.0,0.4849886]
[1759151773069,0.52858076,112220.0,112210.0,0.4858786]
[1759151774674,0.20088209,112220.0,112210.0,0.4858786]
[1759151774972,0.19128209,112220.0,112210.0,0.4858786]
[1759151775374,0.51898076,112220.0,112210.0,0.4858786]
[1759151775976,0.19128209,112220.0,112210.0,0.4858786]
[1759151776177,0.51898076,112220.0,112210.0,0.4858786]
[1759151778365,0.19128209,112220.0,112210.0,0.4858786]
[1759151778569,0.51898076,112220.0,112210.0,0.4858786]
[1759151778977,0.19128209,112220.0,112210.0,0.4858786]
[1759151779178,0.51898076,112220.0,112210.0,0.4858786]
[1759151779776,0.51898076,112220.0,112210.0,0.3968]
[1759151780277,0.51898076,112220.0,112210.0,0.4858786]
[1759151782770,0.19128209,112220.0,112210.0,0.3968]
[1759151782971,0.52858076,112220.0,112210.0,0.3968]
[1759151784382,0.20088209,112220.0,112210.0,0.3968]
[1759151784581,0.52858076,112220.0,112210.0,0.3968]
[1759151786181,0.52858076,112220.0,112210.0,0.42881807]
[1759151786373,0.52858076,112220.0,112210.0,0.03290807]
[1759151786570,0.52858076,112220.0,112210.0,0.02289]
[1759151787173,0.58043742,112220.0,112210.0,0.02289]
[1759151787373,0.5485488,112220.0,112210.0,0.02289]
[1759151789779,0.98043742,112220.0,112210.0,0.00089]
[1759151790083,1.34123742,112220.0,112210.0,0.00089]
[1759151790391,2.16923742,112220.0,112210.0,0.00089]
[1759151792085,1.80843742,112220.0,112210.0,0.02289]
[1759151792477,2.16923742,112220.0,112210.0,0.02289]
[1759151792676,1.34123742,112220.0,112210.0,0.02289]
[1759151792885,1.80843742,112220.0,112210.0,0.02289]
[1759151793381,0.98043742,112220.0,112210.0,0.02289]
[1759151793686,1.80839742,112220.0,112210.0,0.02289]
[1759151794183,1.80838117,112220.0,112210.0,0.02289]
[1759151794382,2.13606359,112220.0,112210.0,0.00089]
[1759151794574,1.30810359,112220.0,112210.0,0.00089]
[1759151794779,2.13606359,112220.0,112210.0,0.00089]
[1759151797686,1.30810359,112220.0,112210.0,0.00089]
[1759151797876,2.13598359,112220.0,112210.0,0.00089]
[1759151798083,1.48061875,112220.0,112210.0,0.02289]
[1759151798280,2.13598359,112220.0,112210.0,0.02289]
[1759151798688,1.30810359,112220.0,112210.0,0.00089]
[1759151798889,2.13598359,112220.0,112210.0,0.00089]
[1759151799190,1.30810359,112220.0,112210.0,0.00089]
[1759151799379,2.13598359,112220.0,112210.0,0.02289]
[1759151799590,1.73598359,112220.0,112210.0,0.02289]
[1759151799988,1.73598359,112220.0,112210.0,0.00089]
[1759151801688,1.70409497,112220.0,112210.0,0.00089]
[1759151802907,2.39257739,112220.0,112210.0,0.00089]
[1759151803194,0.1249478,112200.0,112190.0,0.50232782]
[1759151803399,0.80028068,112200.0,112190.0,0.50232782]
[1759151803998,1.62808068,112200.0,112190.0,0.50232782]
[1759151805493,1.53899288,112200.0,112190.0,0.50232782]
[1759151805693,1.52632288,112200.0,112190.0,0.50232782]
[1759151805891,1.19864046,112200.0,112190.0,0.83001024]
[1759151806389,1.19864046,112200.0,112190.0,0.87803734]
[1759151806695,0.37088046,112200.0,112190.0,0.87803734]
[1759151806897,0.37088046,112200.0,112190.0,0.83001024]
[1759151807092,0.37088046,112200.0,112190.0,0.50232782]
[1759151807299,0.37088046,112200.0,112190.0,0.83001024]
[1759151807485,0.37095426,112200.0,112190.0,0.83001024]
[1759151808796,0.46004196,112200.0,112190.0,0.83001024]
[1759151809297,0.69863668,112200.0,112190.0,0.83001024]
[1759151809498,0.37095426,112200.0,112190.0,0.83001024]
[1759151810000,0.04327184,112200.0,112190.0,0.83001024]
[1759151810203,0.37095426,112200.0,112190.0,0.83001024]
[1759151810401,0.37095426,112200.0,112190.0,0.90232782]
[1759151810700,0.37095426,112200.0,112190.0,1.23001024]
[1759151811492,0.46004196,112200.0,112190.0,1.23001024]
[1759151811691,0.46004196,112200.0,112190.0,1.27803734]
[1759151811901,0.13235954,112200.0,112190.0,0.95035492]
[1759151812097,0.78772438,112200.0,112190.0,0.95035492]
[1759151813201,0.78772438,112200.0,112190.0,0.90232782]
[1759151814202,0.78772438,112200.0,112190.0,0.95035492]
[1759151814503,0.78772438,112200.0,112190.0,0.58955492]
[1759151814803,0.78772438,112200.0,112190.0,0.95035492]
[1759151814999,0.04327184,112200.0,112190.0,0.95035492]
[1759151815195,0.37095426,112200.0,112190.0,1.27803734]
[1759151815503,0.37095426,112200.0,112190.0,0.95035492]
[1759151815702,0.37095426,112200.0,112190.0,1.27803734]
[1759151817105,0.04327184,112200.0,112190.0,1.27803734]
[1759151817303,0.37095426,112200.0,112190.0,1.27803734]
[1759151819002,0.37095426,112200.0,112190.0,0.95035492]
[1759151819305,0.37095426,112200.0,112190.0,1.27803734]
[1759151820014,0.04327184,112200.0,112190.0,1.27803734]
[1759151820199,0.37095426,112200.0,112190.0,1.27803734]
[1759151820405,0.02004184,112200.0,112190.0,0.87803734]
[1759151820711,0.04177184,112200.0,112190.0,0.83001024]
[1759151820911,0.36945426,112200.0,112190.0,0.83001024]
[1759151821304,0.36945426,112200.0,112190.0,1.65757024]
[1759151821707,0.78622438,112200.0,112190.0,0.50232782]
[1759151821914,0.78622438,112200.0,112190.0,1.32988782]
[1759151822714,0.45854196,112200.0,112190.0,1.65757024]
[1759151823010,0.45854196,112200.0,112190.0,0.83001024]
[1759151823603,0.45854196,112200.0,112190.0,0.50232782]
[1759151823807,0.78622438,112200.0,112190.0,1.65753024]
[1759151825421,0.79885438,112200.0,112190.0,0.022]
[1759151828723,0.79885438,112200.0,112190.0,0.03525]
[1759151828925,0.79885438,112200.0,112190.0,0.1243445]
[1759151829120,0.13085954,112200.0,112190.0,0.5331716]
[1759151829321,0.78622438,112200.0,112190.0,0.5331716]
[1759151829620,0.78622438,112200.0,112190.0,0.4851445]
[1759151829816,0.13085954,112200.0,112190.0,0.4851445]
[1759151830015,0.78622438,112200.0,112190.0,0.4851445]
[1759151830222,0.78622438,112200.0,112190.0,0.5331716]
[1759151830416,0.13085954,112200.0,112190.0,0.5331716]
[1759151830620,0.78623766,112200.0,112190.0,0.5331716]
[1759151831125,0.13087282,112200.0,112190.0,0.5331716]
[1759151831421,0.78623766,112200.0,112190.0,0.5331716]
[1759151831624,0.45855524,112200.0,112190.0,0.86085402]
[1759151832219,0.13087282,112200.0,112190.0,0.86085402]
[1759151832418,0.45855524,112200.0,112190.0,0.86085402]
[1759151833327,0.13087282,112200.0,112190.0,0.86085402]
[1759151833527,0.34813754,112200.0,112190.0,0.86085402]
[1759151834028,0.02005512,112200.0,112190.0,1.26085402]
[1759151834224,0.34813754,112200.0,112190.0,1.26085402]
[1759151834418,0.34773754,112200.0,112190.0,1.26085402]
[1759151834728,0.34813754,112200.0,112190.0,1.26085402]
[1759151835724,0.34813754,112200.0,112190.0,1.7605316]
[1759151835725,0.43722414,112200.0,112190.0,1.7605316]
[1759151836023,0.43722414,112200.0,112190.0,2.08821402]
[1759151836228,0.32808242,112200.0,112190.0,2.08821402]
[1759151836422,0.43723694,112210.0,112200.0,0.0890866]
[1759151836624,0.48050318,112210.0,112200.0,0.81354902]
[1759151836827,0.48130318,112210.0,112200.0,0.81354902]
[1759151838223,0.4813008,112210.0,112200.0,0.81354902]
[1759151838829,0.4813008,112210.0,112200.0,0.4858666]
[1759151839032,0.4813008,112210.0,112200.0,0.81354902]
[1759151840325,0.15361838,112210.0,112200.0,0.81354902]
[1759151840532,0.4813008,112210.0,112200.0,0.81354902]
[1759151840830,0.4813008,112210.0,112200.0,1.64082902]
[1759151841031,0.4813008,112210.0,112200.0,1.3131466]
[1759151842632,0.4813008,112210.0,112200.0,1.64082902]
[1759151843828,0.4813008,112210.0,112200.0,0.4858666]
[1759151844028,0.4813008,112210.0,112200.0,1.3131466]
[1759151844231,0.4813008,112210.0,112200.0,1.22402]
[1759151844832,0.4813008,112210.0,112200.0,0.39678]
[1759151845034,0.4813008,112210.0,112200.0,1.22402]
[1759151845836,0.4813008,112210.0,112200.0,0.39678]
[1759151846136,0.4813008,112210.0,112200.0,0.4858666]
[1759151847035,0.15361838,112210.0,112200.0,0.81354902]
[1759151847236,0.4813008,112210.0,112200.0,0.81354902]
[1759151847735,0.4813008,112210.0,112200.0,0.4858666]
[1759151849434,0.4813008,112210.0,112200.0,0.81354902]
[1759151850026,0.4813008,112210.0,112200.0,0.4858666]
[1759151850530,0.4813008,112210.0,112200.0,0.81354902]
[1759151850737,0.4813008,112210.0,112200.0,1.64066902]
[1759151850938,0.4813008,112210.0,112200.0,1.3129866]
[1759151851737,0.15361838,112210.0,112200.0,1.64066902]
[1759151851932,0.4813008,112210.0,112200.0,1.64066902]
[1759151852535,0.4813008,112210.0,112200.0,1.3129866]
[1759151852944,0.15361838,112210.0,112200.0,1.3129866]
[1759151853236,0.4813008,112210.0,112200.0,1.3129866]
[1759151854236,0.48126748,112210.0,112200.0,1.3129866]
[1759151855230,0.48126748,112210.0,112200.0,0.4858666]
[1759151856540,0.15361838,112210.0,112200.0,0.4858666]
[1759151856732,0.48126748,112210.0,112200.0,0.4858666]
[1759151858241,0.49389748,112210.0,112200.0,0.39678]
[1759151859040,0.48126748,112210.0,112200.0,0.39678]
[1759151861239,0.48129969,112210.0,112200.0,0.39678]
[1759151865344,0.15365059,112210.0,112200.0,0.39678]
[1759151865542,0.48129969,112210.0,112200.0,0.39678]
[1759151865742,0.15365059,112210.0,112200.0,0.4858666]
[1759151865938,0.04409607,112210.0,112200.0,0.50378251]
[1759151866144,0.04409607,112210.0,112200.0,0.83143161]
[1759151866345,0.04409607,112210.0,112200.0,0.87945871]
[1759151866645,0.04409607,112210.0,112200.0,0.55180961]
[1759151866838,0.13317417,112210.0,112200.0,0.55180961]
[1759151867446,0.13317417,112210.0,112200.0,0.87945871]
[1759151868240,0.04409607,112210.0,112200.0,0.87945871]
[1759151868542,0.13317377,112210.0,112200.0,0.87945871]
[1759151869046,0.04409607,112210.0,112200.0,0.55180961]
[1759151869248,0.13317377,112210.0,112200.0,0.55180961]
[1759151870744,0.04409607,112210.0,112200.0,0.55180961]
[1759151870947,0.02088607,112210.0,112200.0,0.87945871]
[1759151871140,0.02008607,112210.0,112200.0,0.87945871]
[1759151871341,0.02048607,112210.0,112200.0,0.87945871]
[1759151872853,0.13145377,112210.0,112200.0,0.55180961]
[1759151873148,0.02229,112210.0,112200.0,0.87945871]
[1759151873343,0.0004,112210.0,112200.0,0.87945871]
[1759151873548,0.02229,112210.0,112200.0,0.87945871]
[1759151874149,0.04239596,112210.0,112200.0,0.87945871]
[1759151874850,0.02050596,112210.0,112200.0,0.87945871]
[1759151875244,0.0004,112210.0,112200.0,0.87945871]
[1759151877553,0.51865399,112220.0,112210.0,0.1247977]
[1759151877754,0.53956465,112220.0,112210.0,0.4855977]
[1759151879458,0.12284185,112220.0,112210.0,0.4855977]
[1759151879650,0.12284185,112220.0,112210.0,0.8141368]
[1759151879960,0.09131367,112220.0,112210.0,0.8141368]
[1759151880152,0.09171367,112220.0,112210.0,0.8621639]
[1759151880453,0.07120301,112220.0,112210.0,0.5345148]
[1759151880757,0.0008,112230.0,112220.0,0.1247896]
[1759151880955,1.30596055,112240.0,112230.0,0.1247825]
[1759151881151,0.97831405,112240.0,112230.0,0.1247825]
[1759151881452,0.97911405,112240.0,112230.0,0.1247825]
[1759151882053,0.97911405,112240.0,112230.0,0.4855825]
[1759151882355,1.30676315,112240.0,112230.0,0.4855825]
[1759151882556,0.15255405,112240.0,112230.0,0.4855825]
[1759151883052,0.15175405,112240.0,112230.0,0.4855825]
[1759151883257,0.15215405,112240.0,112230.0,1.3120625]
[1759151883457,0.16106766,112240.0,112230.0,1.3120625]
[1759151883955,0.16106766,112240.0,112230.0,0.4855825]
[1759151884160,0.16106766,112240.0,112230.0,1.3120625]
[1759151884657,0.48871676,112240.0,112230.0,1.3120625]
[1759151884856,0.48871676,112240.0,112230.0,0.4855825]
[1759151885055,0.16106766,112240.0,112230.0,1.3120225]
[1759151886057,0.23307004,112240.0,112230.0,1.3120225]
[1759151886256,0.23307004,112240.0,112230.0,1.3119825]
[1759151887355,0.23307004,112240.0,112230.0,0.4855825]
[1759151887562,0.56071914,112240.0,112230.0,1.3119025]
[1759151887757,0.56071914,112240.0,112230.0,0.4855825]
[1759151888060,0.56071914,112240.0,112230.0,1.3119025]
[1759151888665,0.56071914,112240.0,112230.0,1.22284]
[1759151889556,0.56071914,112240.0,112230.0,1.2228]
[1759151889856,0.56071914,112240.0,112230.0,1.3118629]
[1759151890464,0.5607008,112240.0,112230.0,1.3118629]
[1759151891766,0.54061414,112240.0,112230.0,1.3118629]
[1759151891958,0.21296504,112240.0,112230.0,1.3118629]
[1759151892157,0.54061414,112240.0,112230.0,1.3118629]
[1759151895965,0.21296504,112240.0,112230.0,1.3118629]
[1759151896167,0.54061414,112240.0,112230.0,1.3118629]
[1759151896767,0.21296504,112240.0,112230.0,1.3118629]
[1759151896967,0.54061414,112240.0,112230.0,1.3118629]
[1759151897266,0.56067851,112240.0,112230.0,1.3118629]
[1759151897867,0.23302941,112240.0,112230.0,1.3118629]
[1759151898171,0.56067851,112240.0,112230.0,1.3118629]
[1759151898967,0.23302941,112240.0,112230.0,1.3118629]
[1759151899164,0.56067851,112240.0,112230.0,1.3118629]
[1759151899368,0.23302941,112240.0,112230.0,1.3118629]
[1759151899664,0.56067851,112240.0,112230.0,1.3118629]
[1759151900568,0.56067851,112240.0,112230.0,1.3116229]
[1759151902163,0.56067851,112240.0,112230.0,1.3125129]
[1759151907476,0.21232646,112240.0,112230.0,1.3125129]
[1759151907673,0.53997556,112240.0,112230.0,1.3125129]
[1759151907870,0.21232646,112240.0,112230.0,1.3125129]
[1759151909074,0.53997556,112240.0,112230.0,1.3125129]
[1759151909264,0.21232646,112240.0,112230.0,1.3125129]
[1759151909779,0.21232646,112240.0,112230.0,0.4864729]
[1759151910075,0.21232646,112240.0,112230.0,1.3123129]
[1759151910978,0.53997556,112240.0,112230.0,1.22321]
[1759151911171,0.53997556,112240.0,112230.0,0.4864732]